Workbook

Sheet Resultados
B2: Compensación por unidad | N2: Compensación por central | Q2: Compensación por empresa
B4: Nombre empresa | C4: Nombre central TCV | D4: Nombre unidad TCV | E4: Impuesto | F4: CVP | G4: CMgP | H4: VUI | I4: CTU | J4: Compensación A | K4: Compensación B | L4: Compensación | N4: Nombre central TCV | O4: Suma de Compensación | Q4: Nombre Empresa | R4: Suma de Compensación | T4: Empresa | U4: Impuesto CLP | V4: Compensación CLP | W4: Porcentaje
B5: ANGAMOS | C5: Angamos | D5: ANG1 | E5: 5813513116 | F5: 18.56543172 | G5: 32.24696189 | H5: 2.935265334 | I5: 21.50069706 | J5: 0 | K5: 377374393.8 | L5: 377374394 | N5: Andina | O5: 721917086 | Q5: AES_GENER | R5: 6167442323 | T5: =+Q5 -> AES_GENER | U5: =+SUMIF(TablaResultados[Nombre empresa],T5,TablaResultados[Impuesto]) -> 1.977195668e+10 | V5: =+SUMIF(TablaResultados[Nombre empresa],T5,TablaResultados[Compensación]) -> 6167442323 | W5: =+IFERROR(V5/U5,"-") -> 0.3119287798
B6: ANGAMOS | C6: Angamos | D6: ANG2 | E6: 5820495277 | F6: 18.55283316 | G6: 32.35553573 | H6: 2.935265334 | I6: 21.4880985 | J6: 0 | K6: 345585829 | L6: 345585829 | N6: Angamos | O6: 722960223 | Q6: ANDINA | R6: 721917086 | T6: =+Q6 -> ANDINA | U6: =+SUMIF(TablaResultados[Nombre empresa],T6,TablaResultados[Impuesto]) -> 2633200861 | V6: =+SUMIF(TablaResultados[Nombre empresa],T6,TablaResultados[Compensación]) -> 721917086 | W6: 0.2741595207
B7: ANTILHUE | C7: Antilhue TG | D7: Antilhue TG U1 | E7: 30799193.22 | F7: 88.03914189 | G7: 114.6711351 | H7: 3.652163576 | I7: 91.69130546 | J7: 0 | K7: 13131210.13 | L7: 13131210 | N7: Antilhue TG | O7: 26052675 | Q7: ANGAMOS | R7: 722960223 | T7: ANGAMOS | U7: =+SUMIF(TablaResultados[Nombre empresa],T7,TablaResultados[Impuesto]) -> 1.163400839e+10 | V7: =+SUMIF(TablaResultados[Nombre empresa],T7,TablaResultados[Compensación]) -> 722960223 | W7: =+IFERROR(V7/U7,"-") -> 0.06214197193
B8: ANTILHUE | C8: Antilhue TG | D8: Antilhue TG U2 | E8: 30358781.96 | F8: 95.9608514 | G8: 117.9250481 | H8: 4.240851331 | I8: 100.2017027 | J8: 0 | K8: 12921464.81 | L8: 12921465 | N8: Arauco | O8: 613834 | Q8: ANTILHUE | R8: 26052675 | T8: ANTILHUE | U8: =+SUMIF(TablaResultados[Nombre empresa],T8,TablaResultados[Impuesto]) -> 61157975.18 | V8: =+SUMIF(TablaResultados[Nombre empresa],T8,TablaResultados[Compensación]) -> 26052675 | W8: 0.4259898226
B9: ARAUCO BIO | C9: Arauco | D9: Arauco | E9: 943675246 | F9: 15.1192358 | G9: 33.5375397 | H9: 1.261333177 | I9: 16.38056897 | J9: 0 | K9: 613833.9107 | L9: 613834 | N9: Atacama | O9: 544150270 | Q9: ARAUCO BIO | R9: 6895115 | T9: ARAUCO BIO | U9: =+SUMIF(TablaResultados[Nombre empresa],T9,TablaResultados[Impuesto]) -> 2380189316 | V9: =+SUMIF(TablaResultados[Nombre empresa],T9,TablaResultados[Compensación]) -> 6895115 | W9: 0.002896876712
B10: ENEL_GENERACION | C10: Termoeléctrica Bocamina | D10: Bocamina | E10: 1286623131 | F10: 29.02880964 | G10: 38.06230646 | H10: 3.918082991 | I10: 32.94689263 | J10: 0 | K10: 597939794.4 | L10: 597939794 | N10: Candelaria | O10: 103522129 | Q10: BE FORESTALES | R10: 269117921 | T10: BE FORESTALES | U10: =+SUMIF(TablaResultados[Nombre empresa],T10,TablaResultados[Impuesto]) -> 1425027207 | V10: =+SUMIF(TablaResultados[Nombre empresa],T10,TablaResultados[Compensación]) -> 269117921 | W10: 0.1888510757
B11: ENEL_GENERACION | C11: Termoeléctrica Bocamina | D11: Bocamina II | E11: 7067136781 | F11: 22.12805301 | G11: 30.10616543 | H11: 4.355368596 | I11: 26.48342161 | J11: 0 | K11: 2600709630 | L11: 2600709630 | N11: Cardones | O11: 2222945 | Q11: CARDONES SA | R11: 2222945 | T11: CARDONES SA | U11: =+SUMIF(TablaResultados[Nombre empresa],T11,TablaResultados[Impuesto]) -> 3575210.55 | V11: =+SUMIF(TablaResultados[Nombre empresa],T11,TablaResultados[Compensación]) -> 2222945 | W11: 0.6217661782
B12: AES_GENER | C12: Termoeléctrica Ventanas | D12: Campiche | E12: 4966435722 | F12: 22.99391839 | G12: 36.08139251 | H12: 3.741955286 | I12: 26.73587368 | J12: 0 | K12: 1297150375 | L12: 1297150375 | N12: Celco | O12: 4400805 | Q12: COCHRANE | R12: 2403914488 | T12: COCHRANE | U12: =+SUMIF(TablaResultados[Nombre empresa],T12,TablaResultados[Impuesto]) -> 1.091235437e+10 | V12: =+SUMIF(TablaResultados[Nombre empresa],T12,TablaResultados[Compensación]) -> 2403914488 | W12: 0.2202929272
B13: COLBUN | C13: Candelaria | D13: Candelaria 1 | E13: 170071669.8 | F13: 38.38733459 | G13: 65.35024522 | H13: 3.051709925 | I13: 41.43904452 | J13: 0 | K13: 62753806.15 | L13: 62753806 | N13: Cholguan | O13: 186194 | Q13: COLBUN | R13: 3879965479 | T13: COLBUN | U13: =+SUMIF(TablaResultados[Nombre empresa],T13,TablaResultados[Impuesto]) -> 1.602984117e+10 | V13: =+SUMIF(TablaResultados[Nombre empresa],T13,TablaResultados[Compensación]) -> 3879965479 | W13: 0.2420464081
B14: COLBUN | C14: Candelaria | D14: Candelaria 2 | E14: 220124956.8 | F14: 18.56032848 | G14: 58.91293949 | H14: 2.577762402 | I14: 21.13809088 | J14: 0 | K14: 40768323.39 | L14: 40768323 | N14: CMPC Cordillera | O14: 264389857 | Q14: COLMITO | R14: 8571711 | T14: COLMITO | U14: =+SUMIF(TablaResultados[Nombre empresa],T14,TablaResultados[Impuesto]) -> 14091016.35 | V14: =+SUMIF(TablaResultados[Nombre empresa],T14,TablaResultados[Compensación]) -> 8571711 | W14: 0.6083103438
B15: CARDONES SA | C15: Cardones | D15: Cardones | E15: 3575210.55 | F15: 122.5609707 | G15: 142.4106216 | H15: 4.87679187 | I15: 127.4377626 | J15: 0 | K15: 2222944.952 | L15: 2222945 | N15: CMPC Laja | O15: 497230 | Q15: COMASA | R15: 5673022 | T15: COMASA | U15: =+SUMIF(TablaResultados[Nombre empresa],T15,TablaResultados[Impuesto]) -> 98213709.27 | V15: =+SUMIF(TablaResultados[Nombre empresa],T15,TablaResultados[Compensación]) -> 5673022 | W15: 0.05776201757
B16: TAMAKAYA_ENERGIA | C16: Kelar | D16: CC KELAR | E16: 2765505068 | F16: 22.55864205 | G16: 39.38555522 | H16: 1.625979299 | I16: 24.18462135 | J16: 0 | K16: 1125750062 | L16: 1125750062 | N16: CMPC Pacífico | O16: 2605510 | Q16: EMELDA | R16: 176841 | T16: EMELDA | U16: =+SUMIF(TablaResultados[Nombre empresa],T16,TablaResultados[Impuesto]) -> 636255.46 | V16: =+SUMIF(TablaResultados[Nombre empresa],T16,TablaResultados[Compensación]) -> 176841 | W16: 0.2779402475
B17: ENEL_GENERACION | C17: Atacama | D17: CC1 | E17: 436494110.9 | F17: 33.76640938 | G17: 47.89522124 | H17: 2.56296922 | I17: 36.3293786 | J17: 0 | K17: 218144793.8 | L17: 218144794 | N17: Cochrane | O17: 2403914488 | Q17: ENEL_GENERACION | R17: 6374613664 | T17: ENEL_GENERACION | U17: =+SUMIF(TablaResultados[Nombre empresa],T17,TablaResultados[Impuesto]) -> 1.693036075e+10 | V17: =+SUMIF(TablaResultados[Nombre empresa],T17,TablaResultados[Compensación]) -> 6374613664 | W17: 0.3765196594
B18: ENEL_GENERACION | C18: Atacama | D18: CC2 | E18: 519591263.6 | F18: 37.41028155 | G18: 48.01300981 | H18: 2.535653017 | I18: 39.94593457 | J18: 0 | K18: 326005475.7 | L18: 326005476 | N18: Colmito | O18: 8571711 | Q18: ENERGIA PACIFICO | R18: 2971190 | T18: ENERGIA PACIFICO | U18: =+SUMIF(TablaResultados[Nombre empresa],T18,TablaResultados[Impuesto]) -> 36910164.65 | V18: =+SUMIF(TablaResultados[Nombre empresa],T18,TablaResultados[Compensación]) -> 2971190 | W18: 0.08049787987
B19: COCHRANE | C19: Cochrane | D19: CCH1 | E19: 5437695798 | F19: 20.95521757 | G19: 32.9500861 | H19: 3.50759007 | I19: 24.46280764 | J19: 0 | K19: 1188097584 | L19: 1188097584 | N19: Coronel | O19: 16663281 | Q19: ENGIE | R19: 2732029749 | T19: ENGIE | U19: =+SUMIF(TablaResultados[Nombre empresa],T19,TablaResultados[Impuesto]) -> 8942711964 | V19: =+SUMIF(TablaResultados[Nombre empresa],T19,TablaResultados[Compensación]) -> 2732029749 | W19: 0.3055034938
B20: COCHRANE | C20: Cochrane | D20: CCH2 | E20: 5474658577 | F20: 20.96431701 | G20: 33.12241849 | H20: 3.50759007 | I20: 24.47190707 | J20: 0 | K20: 1215816904 | L20: 1215816904 | N20: Diego de Almagro | O20: 556011 | Q20: ENLASA | R20: 0 | T20: ENLASA | U20: =+SUMIF(TablaResultados[Nombre empresa],T20,TablaResultados[Impuesto]) -> 0 | V20: =+SUMIF(TablaResultados[Nombre empresa],T20,TablaResultados[Compensación]) -> 0 | W20: -
B21: ENGIE | C21: (en blanco) | D21: CD Iquique | E21: 0 | F21: 0 | G21: 0 | H21: 0 | I21: 0 | J21: 0 | K21: 0 | L21: 0 | N21: El Salvador | O21: 108382644 | Q21: ENORCHILE | R21: 0 | T21: ENORCHILE | U21: =+SUMIF(TablaResultados[Nombre empresa],T21,TablaResultados[Impuesto]) -> 0 | V21: =+SUMIF(TablaResultados[Nombre empresa],T21,TablaResultados[Compensación]) -> 0 | W21: -
B22: ARAUCO BIO | C22: Celco | D22: Celco | E22: 493883326.7 | F22: 17.11822938 | G22: 30.85230131 | H22: 1.5050077 | I22: 18.62323707 | J22: 0 | K22: 4400804.914 | L22: 4400805 | N22: Emelda | O22: 176841 | Q22: ERSA | R22: 433548 | T22: ERSA | U22: =+SUMIF(TablaResultados[Nombre empresa],T22,TablaResultados[Impuesto]) -> 3135295345 | V22: =+SUMIF(TablaResultados[Nombre empresa],T22,TablaResultados[Compensación]) -> 433548 | W22: 0.0001382797958
B23: ARAUCO BIO | C23: Cholguan | D23: Cholguán | E23: 81787670.17 | F23: 6.774273816 | G23: 28.83089072 | H23: 0.3319129679 | I23: 7.106186784 | J23: 0 | K23: 186193.9044 | L23: 186194 | N23: Energía Pacífico | O23: 2971190 | Q23: GMETROPOLITANA | R23: 1052547306 | T23: GMETROPOLITANA | U23: =+SUMIF(TablaResultados[Nombre empresa],T23,TablaResultados[Impuesto]) -> 2323758013 | V23: =+SUMIF(TablaResultados[Nombre empresa],T23,TablaResultados[Compensación]) -> 1052547306 | W23: 0.4529504793
B24: BE FORESTALES | C24: CMPC Cordillera | D24: CMPC Cordillera | E24: 550405131.4 | F24: 20.80869006 | G24: 35.64177047 | H24: 108.1771092 | I24: 128.9857992 | J24: 166454015.5 | K24: 264389856.7 | L24: 264389857 | N24: Escuadron | O24: 956195 | Q24: GUACOLDA | R24: 3290735008 | T24: GUACOLDA | U24: =+SUMIF(TablaResultados[Nombre empresa],T24,TablaResultados[Impuesto]) -> 1.753386884e+10 | V24: =+SUMIF(TablaResultados[Nombre empresa],T24,TablaResultados[Compensación]) -> 3290735008 | W24: 0.1876787741
B25: BE FORESTALES | C25: CMPC Laja | D25: CMPC Laja | E25: 80831547.41 | F25: 16.3230638 | G25: 34.29229466 | H25: 0.1063393894 | I25: 16.42940319 | J25: 0 | K25: 497229.6034 | L25: 497230 | N25: Esperanza | O25: 0 | Q25: HORNITOS | R25: 1077850246 | T25: HORNITOS | U25: =+SUMIF(TablaResultados[Nombre empresa],T25,TablaResultados[Impuesto]) -> 3833524117 | V25: =+SUMIF(TablaResultados[Nombre empresa],T25,TablaResultados[Compensación]) -> 1077850246 | W25: 0.2811643316
B26: BE FORESTALES | C26: CMPC Pacífico | D26: CMPC Pacífico | E26: 408732668.3 | F26: 12.88902291 | G26: 33.58574905 | H26: 0.552114629 | I26: 13.44113754 | J26: 0 | K26: 2605510.279 | L26: 2605510 | N26: Guacolda | O26: 3290735008 | Q26: LOS_GUINDOS | R26: 31074173 | T26: LOS_GUINDOS | U26: =+SUMIF(TablaResultados[Nombre empresa],T26,TablaResultados[Impuesto]) -> 34830868.29 | V26: =+SUMIF(TablaResultados[Nombre empresa],T26,TablaResultados[Compensación]) -> 31074173 | W26: 0.8921446557
B27: BE FORESTALES | C27: Santa Fe | D27: CMPC Santa Fe | E27: 122403976.3 | F27: 22.12465234 | G27: 35.45318439 | H27: 0.1313908475 | I27: 22.25604318 | J27: 0 | K27: 1625324.225 | L27: 1625324 | N27: Horcones TG | O27: 815287 | Q27: NEOMAS | R27: 763404 | T27: NEOMAS | U27: =+SUMIF(TablaResultados[Nombre empresa],T27,TablaResultados[Impuesto]) -> 24293660.54 | V27: =+SUMIF(TablaResultados[Nombre empresa],T27,TablaResultados[Compensación]) -> 763404 | W27: 0.03142400046
B28: BE FORESTALES | C28: (en blanco) | D28: CMPC TISSUE | E28: 262653883.8 | F28: 0 | G28: 0 | H28: 0 | I28: 0 | J28: 0 | K28: 0 | L28: 0 | N28: Hornitos | O28: 1077850246 | Q28: NUEVA ENERGIA | R28: 956195 | T28: NUEVA ENERGIA | U28: =+SUMIF(TablaResultados[Nombre empresa],T28,TablaResultados[Impuesto]) -> 26320343.43 | V28: =+SUMIF(TablaResultados[Nombre empresa],T28,TablaResultados[Compensación]) -> 956195 | W28: 0.03632912323
B29: COLMITO | C29: Colmito | D29: Colmito | E29: 14091016.35 | F29: 51.15460235 | G29: 82.83985971 | H29: 3.019310038 | I29: 54.17391239 | J29: 0 | K29: 8571710.578 | L29: 8571711 | N29: Huasco TG | O29: 2572393 | Q29: ORAZUL_CHILE | R29: 4096164 | T29: ORAZUL_CHILE | U29: =+SUMIF(TablaResultados[Nombre empresa],T29,TablaResultados[Impuesto]) -> 4535844.69 | V29: =+SUMIF(TablaResultados[Nombre empresa],T29,TablaResultados[Compensación]) -> 4096164 | W29: 0.903065312
B30: ANDINA | C30: Andina | D30: CTA | E30: 2633200861 | F30: 21.43337323 | G30: 33.72848996 | H30: 4.021187653 | I30: 25.45456089 | J30: 0 | K30: 721917085.6 | L30: 721917086 | N30: Kelar | O30: 1125750062 | Q30: SGA | R30: 16663281 | T30: SGA | U30: =+SUMIF(TablaResultados[Nombre empresa],T30,TablaResultados[Impuesto]) -> 29548524.57 | V30: =+SUMIF(TablaResultados[Nombre empresa],T30,TablaResultados[Compensación]) -> 16663281 | W30: 0.5639293752
B31: HORNITOS | C31: Hornitos | D31: CTH | E31: 3833524117 | F31: 21.99065486 | G31: 31.86103724 | H31: 5.108736896 | I31: 27.09939176 | J31: 0 | K31: 1077850246 | L31: 1077850246 | N31: Laguna Verde | O31: 0 | Q31: SWO | R31: 108382644 | T31: SWO | U31: =+SUMIF(TablaResultados[Nombre empresa],T31,TablaResultados[Impuesto]) -> 110440076.9 | V31: =+SUMIF(TablaResultados[Nombre empresa],T31,TablaResultados[Compensación]) -> 108382644 | W31: 0.9813705954
B32: ENGIE | C32: Mejillones | D32: CTM1 | E32: 331844599.3 | F32: 30.83289735 | G32: 47.72741471 | H32: 3.365692463 | I32: 34.19858982 | J32: 0 | K32: 200158482.6 | L32: 200158483 | N32: Laja | O32: 0 | Q32: TAMAKAYA_ENERGIA | R32: 1125750062 | T32: =+Q32 -> TAMAKAYA_ENERGIA | U32: =+SUMIF(TablaResultados[Nombre empresa],T32,TablaResultados[Impuesto]) -> 2765505068 | V32: =+SUMIF(TablaResultados[Nombre empresa],T32,TablaResultados[Compensación]) -> 1125750062 | W32: =+IFERROR(V32/U32,"-") -> 0.4070685225
B33: ENGIE | C33: Mejillones | D33: CTM2 | E33: 525488501.6 | F33: 30.40324944 | G33: 45.72789608 | H33: 3.365692463 | I33: 33.76894191 | J33: 0 | K33: 322341482.1 | L33: 322341482 | N33: Lautaro | O33: 5673022 | Q33: Total general | R33: 30033776463 | T33: Total general | U33: =SUM(U5:U32) -> 1.206961558e+11 | V33: =SUM(V5:V32) -> 30033776463 | W33: =+V33/U33 -> 0.2488378878
B34: ENGIE | C34: Mejillones | D34: CTM3 | E34: 1577893222 | F34: 20.04925698 | G34: 34.76805625 | H34: 1.502478755 | I34: 21.55173574 | J34: 0 | K34: 638181614.2 | L34: 638181614 | N34: Licanten | O34: 68727
B35: ENEL_GENERACION | C35: Tarapacá | D35: CTTAR | E35: 0 | F35: 0 | G35: 0 | H35: 0 | I35: 0 | J35: 0 | K35: 0 | L35: 0 | N35: Los Guindos | O35: 31074173
B36: ENEL_GENERACION | C36: Diego de Almagro | D36: Diego de Almagro | E36: 1586921.27 | F36: 148.8681838 | G36: 186.395313 | H36: 8.166903676 | I36: 157.0350875 | J36: 0 | K36: 556010.9936 | L36: 556011 | N36: Los Pinos | O36: 33038197
B37: SWO | C37: El Salvador | D37: El Salvador | E37: 110440076.9 | F37: 188.3405974 | G37: 213.0462373 | H37: 1326.163468 | I37: 1514.504066 | J37: 108382643.7 | K37: 28078230.52 | L37: 108382644 | N37: Los Vientos | O37: 100033339
B38: EMELDA | C38: Emelda | D38: Emelda U1 | E38: 366699 | F38: 162.0301144 | G38: 200.8866585 | H38: 3.852867752 | I38: 165.8829822 | J38: 0 | K38: 126738.5435 | L38: 126739 | N38: Masisa | O38: 763404
B39: EMELDA | C39: Emelda | D39: Emelda U2 | E39: 269556.46 | F39: 145.6165188 | G39: 177.5288593 | H39: 3.533724002 | I39: 149.1502428 | J39: 0 | K39: 50101.59829 | L39: 50102 | N39: Mejillones | O39: 1775453148
B40: ENERGIA PACIFICO | C40: Energía Pacífico | D40: Energía Pacífico | E40: 36910164.65 | F40: 4.855999934 | G40: 34.00468613 | H40: 0.3246386786 | I40: 5.180638612 | J40: 0 | K40: 2971189.704 | L40: 2971190 | N40: Nehuenco | O40: 632298164
B41: NUEVA ENERGIA | C41: Escuadron | D41: Escuadrón | E41: 26320343.43 | F41: 18.98426423 | G41: 53.12371015 | H41: 2.328571202 | I41: 21.31283544 | J41: 0 | K41: 956195.1571 | L41: 956195 | N41: Norgener | O41: 1343063618
B42: ENORCHILE | C42: Esperanza | D42: Esperanza TG | E42: 0 | F42: 0 | G42: 0 | H42: 0 | I42: 0 | J42: 0 | K42: 0 | L42: 0 | N42: Nueva Aldea I | O42: 20067
B43: GUACOLDA | C43: Guacolda | D43: Guacolda 1 | E43: 3899860417 | F43: 20.7589147 | G43: 32.95451546 | H43: 4.654487194 | I43: 25.41340189 | J43: 0 | K43: 774307529.4 | L43: 774307529 | N43: Nueva Aldea III | O43: 0
B44: GUACOLDA | C44: Guacolda | D44: Guacolda 2 | E44: 3439221479 | F44: 20.24820825 | G44: 33.77736493 | H44: 4.654487194 | I44: 24.90269544 | J44: 0 | K44: 710108854 | L44: 710108854 | N44: Nueva Renca | O44: 929662704
B45: GUACOLDA | C45: Guacolda | D45: Guacolda 3 | E45: 3503151354 | F45: 19.60534484 | G45: 32.24157978 | H45: 3.863010084 | I45: 23.46835492 | J45: 0 | K45: 630236558.3 | L45: 630236558 | N45: Petropower | O45: 0
B46: GUACOLDA | C46: Guacolda | D46: Guacolda 4 | E46: 3065194179 | F46: 21.44305073 | G46: 33.06019953 | H46: 4.088800907 | I46: 25.53185163 | J46: 0 | K46: 780266753.8 | L46: 780266754 | N46: Quintero | O46: 738583093
B47: GUACOLDA | C47: Guacolda | D47: Guacolda 5 | E47: 3626441408 | F47: 18.43902741 | G47: 32.61992923 | H47: 3.739069408 | I47: 22.17809682 | J47: 0 | K47: 395815313.3 | L47: 395815313 | N47: Renca | O47: 0
B48: ARAUCO BIO | C48: Horcones TG | D48: Horcones | E48: 1146697.69 | F48: 120.1612436 | G48: 139.5601868 | H48: 5.198343379 | I48: 125.359587 | J48: 0 | K48: 815287.1483 | L48: 815287 | N48: San Isidro | O48: 734254802
B49: ENEL_GENERACION | C49: Huasco TG | D49: Huasco TG | E49: 2572393.24 | F49: 119.8550824 | G49: 119.8550824 | H49: 23.86992988 | I49: 143.7250123 | J49: 2572393.24 | K49: 2572393.24 | L49: 2572393 | N49: San Isidro 2 | O49: 1041490580
B50: ENGIE | C50: Mejillones | D50: IEM | E50: 4368653610 | F50: 19.81321826 | G50: 32.18626711 | H50: 1.861730375 | I50: 21.67494864 | J50: 0 | K50: 614771569 | L50: 614771569 | N50: San Lorenzo de D. de Almagro | O50: 0
B51: AES_GENER | C51: Laguna Verde | D51: Laguna Verde TG | E51: 0 | F51: 0 | G51: 0 | H51: 0 | I51: 0 | J51: 0 | K51: 0 | L51: 0 | N51: Santa Fe | O51: 1625324
B52: AES_GENER | C52: Laguna Verde | D52: Laguna Verde TV | E52: 0 | F52: 0 | G52: 0 | H52: 0 | I52: 0 | J52: 0 | K52: 0 | L52: 0 | N52: Santa Lidia | O52: 22851263
B53: AES_GENER | C53: Laja | D53: Laja | E53: 846240.11 | F53: 0 | G53: 35.16466722 | H53: 0.01218845491 | I53: 0.01218845491 | J53: 0 | K53: 0 | L53: 0 | N53: Santa María | O53: 3111106989
B54: COMASA | C54: Lautaro | D54: Lautaro-Comasa | E54: 44781286.93 | F54: 21.99073671 | G54: 35.6643909 | H54: 0.2870328563 | I54: 22.27776957 | J54: 0 | K54: 2255746.206 | L54: 2255746 | N54: Taltal | O54: 114357091
B55: COMASA | C55: Lautaro | D55: Lautaro-Comasa 2 | E55: 53432422.34 | F55: 20.26090679 | G55: 36.75542911 | H55: 0.4798229786 | I55: 20.74072977 | J55: 0 | K55: 3417275.907 | L55: 3417276 | N55: Tarapacá | O55: 0
B56: ARAUCO BIO | C56: Licanten | D56: Licantén | E56: 90559811.5 | F56: 1.385934466 | G56: 32.65503498 | H56: 0.5324385543 | I56: 1.91837302 | J56: 0 | K56: 68726.53027 | L56: 68727 | N56: Termoeléctrica Bocamina | O56: 3198649424
B57: LOS_GUINDOS | C57: Los Guindos | D57: Los Guindos | E57: 15100135.14 | F57: 114.7267276 | G57: 131.8519456 | H57: 3.957027058 | I57: 118.6837547 | J57: 0 | K57: 11343440.3 | L57: 11343440 | N57: Termoeléctrica Ventanas | O57: 4824378705
B58: COLBUN | C58: Los Pinos | D58: Los Pinos | E58: 143275141.8 | F58: 63.78959562 | G58: 84.55958228 | H58: 2.83200002 | I58: 66.62159564 | J58: 0 | K58: 33038197.48 | L58: 33038197 | N58: Tocopilla | O58: 956576601
B59: GMETROPOLITANA | C59: Los Vientos | D59: Los Vientos | E59: 127040038.5 | F59: 103.7793056 | G59: 112.3777308 | H59: 4.368375802 | I59: 108.1476814 | J59: 0 | K59: 100033339.4 | L59: 100033339 | N59: Valdivia | O59: 21328
B60: NEOMAS | C60: Masisa | D60: Masisa (Cabrero) | E60: 24293660.54 | F60: 7.509021739 | G60: 33.60331799 | H60: 0.2905557946 | I60: 7.799577533 | J60: 0 | K60: 763404.1382 | L60: 763404 | N60: Viñales | O60: 768873
B61: COLBUN | C61: Nehuenco | D61: Nehuenco | E61: 2539215256 | F61: 7.814401915 | G61: 33.21824604 | H61: 1.475676268 | I61: 9.290078183 | J61: 0 | K61: 213193040.2 | L61: 213193040 | N61: Yungay | O61: 4096164
B62: COLBUN | C62: Nehuenco | D62: Nehuenco II | E62: 3393975971 | F62: 17.79492534 | G62: 32.68184462 | H62: 1.546629714 | I62: 19.34155505 | J62: 0 | K62: 414757519.7 | L62: 414757520 | N62: Total general | O62: 30033342915
B63: COLBUN | C63: Nehuenco | D63: Nehuenco TG 9B | E63: 8275918.94 | F63: 18.65063131 | G63: 45.08829586 | H63: 2.778173089 | I63: 21.4288044 | J63: 0 | K63: 4347604.167 | L63: 4347604
B64: AES_GENER | C64: Norgener | D64: NTO1 | E64: 2924206586 | F64: 21.07201836 | G64: 31.5077122 | H64: 3.829434663 | I64: 24.90145302 | J64: 0 | K64: 743870337.3 | L64: 743870337
B65: AES_GENER | C65: Norgener | D65: NTO2 | E65: 2913021870 | F65: 20.61589257 | G65: 33.9019176 | H65: 3.822111504 | I65: 24.43800407 | J65: 0 | K65: 599193280.6 | L65: 599193281
B66: ARAUCO BIO | C66: Nueva Aldea I | D66: Nueva Aldea I | E66: 34752682.3 | F66: 7.976946793 | G66: 32.17301353 | H66: 0.1396362998 | I66: 8.116583092 | J66: 0 | K66: 20066.9891 | L66: 20067
B67: ARAUCO BIO | C67: Nueva Aldea III | D67: Nueva Aldea III | E67: 261236927.9 | F67: 0 | G67: 30.74967845 | H67: 0.2285377471 | I67: 0.2285377471 | J67: 0 | K67: 0 | L67: 0
B68: GMETROPOLITANA | C68: Nueva Renca | D68: Nueva Renca | E68: 2169019691 | F68: 32.40883958 | G68: 46.16106662 | H68: 2.040130197 | I68: 34.44896978 | J68: 0 | K68: 929662704.3 | L68: 929662704
B69: AES_GENER | C69: Termoeléctrica Ventanas | D69: Nueva Ventanas | E69: 5329378966 | F69: 21.89548478 | G69: 34.17071216 | H69: 3.795792009 | I69: 25.69127679 | J69: 0 | K69: 1262614487 | L69: 1262614487
B70: ERSA | C70: Petropower | D70: Petropower | E70: 0 | F70: 2.703738999 | G70: 30.14884934 | H70: 0 | I70: 2.703738999 | J70: 0 | K70: 0 | L70: 0
B71: ENEL_GENERACION | C71: Quintero | D71: Quintero A | E71: 1069966952 | F71: 24.29656795 | G71: 45.1574159 | H71: 3.220352638 | I71: 27.51692058 | J71: 0 | K71: 462771248.4 | L71: 462771248
B72: ENEL_GENERACION | C72: Quintero | D72: Quintero B | E72: 838759900 | F72: 21.49138353 | G72: 43.74402347 | H72: 3.27760146 | I72: 24.76898499 | J72: 0 | K72: 275811844.7 | L72: 275811845
B73: GMETROPOLITANA | C73: Renca | D73: Renca U1 | E73: 0 | F73: 0 | G73: 0 | H73: 0 | I73: 0 | J73: 0 | K73: 0 | L73: 0
B74: GMETROPOLITANA | C74: Renca | D74: Renca U2 | E74: 0 | F74: 0 | G74: 0 | H74: 0 | I74: 0 | J74: 0 | K74: 0 | L74: 0
B75: ENEL_GENERACION | C75: San Isidro | D75: San Isidro | E75: 2148655337 | F75: 16.74340483 | G75: 38.17253189 | H75: 1.532816423 | I75: 18.27622126 | J75: 0 | K75: 734254801.7 | L75: 734254802
B76: ENEL_GENERACION | C76: San Isidro 2 | D76: San Isidro II | E76: 3256847394 | F76: 19.74795901 | G76: 35.32092444 | H76: 1.466001766 | I76: 21.21396078 | J76: 0 | K76: 1041490580 | L76: 1041490580
B77: ENLASA | C77: San Lorenzo de D. de Almagro | D77: San Lorenzo de D. de Almagro U1 | E77: 0 | F77: 132.14327 | G77: 132.14327 | H77: 0 | I77: 132.14327 | J77: 0 | K77: 0 | L77: 0
B78: ENLASA | C78: San Lorenzo de D. de Almagro | D78: San Lorenzo de D. de Almagro U2 | E78: 0 | F78: 145.025615 | G78: 145.025615 | H78: 0 | I78: 145.025615 | J78: 0 | K78: 0 | L78: 0
B79: GMETROPOLITANA | C79: Santa Lidia | D79: Santa Lidia | E79: 27698283.37 | F79: 94.59746908 | G79: 102.0497748 | H79: 3.706412618 | I79: 98.3038817 | J79: 0 | K79: 22851262.87 | L79: 22851263
B80: COLBUN | C80: Santa María | D80: Santa María | E80: 9554902260 | F80: 23.82960023 | G80: 35.35793551 | H80: 4.856586258 | I80: 28.68618649 | J80: 0 | K80: 3111106989 | L80: 3111106989
B81: ENEL_GENERACION | C81: Taltal | D81: Taltal 1 | E81: 215106387.8 | F81: 48.04287892 | G81: 67.08633322 | H81: 6.057743389 | I81: 54.10062231 | J81: 0 | K81: 67455855.39 | L81: 67455855
B82: ENEL_GENERACION | C82: Taltal | D82: Taltal 2 | E82: 86882795.45 | F82: 52.01404449 | G82: 60.35838638 | H82: 4.100288512 | I82: 56.114333 | J82: 0 | K82: 46901236.03 | L82: 46901236
B83: SGA | C83: Coronel | D83: TG_Coronel | E83: 29548524.57 | F83: 67.89310095 | G83: 94.2650511 | H83: 11.60748092 | I83: 79.50058187 | J83: 0 | K83: 16663280.51 | L83: 16663281
B84: ENGIE | C84: Tocopilla | D84: TG1 | E84: 0 | F84: 225.3008553 | G84: 225.3008553 | H84: 0 | I84: 225.3008553 | J84: 0 | K84: 0 | L84: 0
B85: ENGIE | C85: Tocopilla | D85: TG2 | E85: 0 | F85: 0 | G85: 0 | H85: 0 | I85: 0 | J85: 0 | K85: 0 | L85: 0
B86: ENGIE | C86: Tocopilla | D86: TG3 | E86: 20073099.6 | F86: 8.715082319 | G86: 32.60348567 | H86: 1.078760894 | I86: 9.793843214 | J86: 0 | K86: 2340456.671 | L86: 2340457
B87: ENEL_GENERACION | C87: Tarapacá | D87: TGTAR | E87: 137384.0006 | F87: 0 | G87: 0 | H87: 0 | I87: 0 | J87: 0 | K87: 0 | L87: 0
B88: ENGIE | C88: Tocopilla | D88: U12 | E88: 0 | F88: 0 | G88: 0 | H88: 0 | I88: 0 | J88: 0 | K88: 0 | L88: 0
B89: ENGIE | C89: Tocopilla | D89: U13 | E89: 0 | F89: 0 | G89: 0 | H89: 0 | I89: 0 | J89: 0 | K89: 0 | L89: 0
B90: ENGIE | C90: Tocopilla | D90: U14 | E90: 161372391.2 | F90: 45.67698804 | G90: 61.49049078 | H90: 3.867255856 | I90: 49.54424389 | J90: 0 | K90: 109517202.8 | L90: 109517203
B91: ENGIE | C91: Tocopilla | D91: U15 | E91: 283319537.8 | F91: 42.95350702 | G91: 53.04846679 | H91: 3.867255856 | I91: 46.82076287 | J91: 0 | K91: 208874430.9 | L91: 208874431
B92: ENGIE | C92: Tocopilla | D92: U16 | E92: 1674067003 | F92: 21.51226075 | G92: 32.78824661 | H92: 1.622222575 | I92: 23.13448333 | J92: 0 | K92: 635844509.8 | L92: 635844510
B93: ARAUCO BIO | C93: Valdivia | D93: Valdivia | E93: 359061996.4 | F93: 1.00408969 | G93: 33.91721425 | H93: 0.2981202541 | I93: 1.302209944 | J93: 0 | K93: 21327.65152 | L93: 21328
B94: AES_GENER | C94: Termoeléctrica Ventanas | D94: Ventanas 1 | E94: 398116435.7 | F94: 33.53533098 | G94: 50.73837965 | H94: 4.359472804 | I94: 37.89480378 | J94: 0 | K94: 225946216.3 | L94: 225946216
B95: AES_GENER | C95: Termoeléctrica Ventanas | D95: Ventanas 2 | E95: 3239950865 | F95: 28.48246338 | G95: 37.15794513 | H95: 3.688192614 | I95: 32.170656 | J95: 0 | K95: 2038667627 | L95: 2038667627
B96: ARAUCO BIO | C96: Viñales | D96: Viñales | E96: 114084957.5 | F96: 14.33126803 | G96: 31.81972784 | H96: 0.3289466768 | I96: 14.66021471 | J96: 0 | K96: 768873.2577 | L96: 768873
B97: ORAZUL_CHILE | C97: Yungay | D97: Yungay 1 | E97: 2178135.16 | F97: 118.6542402 | G97: 120.0350393 | H97: 3.391446008 | I97: 122.0456862 | J97: 1291325.535 | K97: 2178135.16 | L97: 2178135
B98: ORAZUL_CHILE | C98: Yungay | D98: Yungay 2 | E98: 1386428.54 | F98: 108.8618707 | G98: 116.1034802 | H98: 3.60794077 | I98: 112.4698115 | J98: 0 | K98: 1126152.165 | L98: 1126152
B99: ORAZUL_CHILE | C99: Yungay | D99: Yungay 3 | E99: 971280.99 | F99: 114.3060766 | G99: 120.6369837 | H99: 2.052605617 | I99: 116.3586822 | J99: 0 | K99: 791876.6706 | L99: 791877
B100: ORAZUL_CHILE | C100: Yungay | D100: Yungay 4 ca | E100: 0 | F100: 0 | G100: 0 | H100: 0 | I100: 0 | J100: 0 | K100: 0 | L100: 0
B101: LOS_GUINDOS | C101: Los Guindos | D101: Los Guindos 2 | E101: 19730733.15 | F101: 108.9380866 | G101: 109.2250499 | H101: 4.764896264 | I101: 113.7029828 | J101: 18542460.02 | K101: 19730733.15 | L101: 19730733
B102: ERSA | C102: ACONCAGUA | D102: ACONCAGUA | E102: 1163351101 | F102: 0 | G102: 28.57461238 | H102: 11.04796867 | I102: 11.04796867 | J102: 0 | K102: 0 | L102: 0
B103: ERSA | C103: ERSA_BIOBIO | D103: ERSA_BIOBIO | E103: 1971944245 | F103: 2.677334019 | G103: 32.97925491 | H103: 5.339623304 | I103: 8.016957323 | J103: 0 | K103: 433548.4375 | L103: 433548

Sheet Cuadro de Pago
C2: Cuadro de Pago
C4: Empresa | D4: Paga | E4: Recibe | F4: Neto | J4: Reciben
I5: Pagan | J5: AES_GENER | K5: ANDINA | L5: ANTILHUE | M5: BE FORESTALES | N5: CARDONES SA | O5: COCHRANE | P5: COLMITO | Q5: GMETROPOLITANA | R5: GUACOLDA | S5: HORNITOS | T5: LOS_GUINDOS | U5: ORAZUL_CHILE | V5: SWO | W5: Total
C6: AES_GENER | D6: 3665564342 | E6: 6167442323 | F6: 2501877981 | I6: ANGAMOS | J6: 191521870 | K6: 23922928 | L6: 1994365 | M6: 19362966 | N6: 170169 | O6: 121239305 | P6: 656175 | Q6: 80573805 | R6: 131741400 | S6: 38312400 | T6: 2378767 | U6: 313566 | V6: 8296826 | W6: 620484541.6
C7: ANDINA | D7: 409408409.3 | E7: 721917086 | F7: 312508676.7 | I7: ARAUCO BIO | J7: 60573829 | K7: 7566255 | L7: 630770 | M7: 6124047 | N7: 53820 | O7: 38345119 | P7: 207533 | Q7: 25483585 | R7: 41666683 | S7: 12117304 | T7: 752347 | U7: 99174 | V7: 2624089 | W7: 196244556.8
C8: ANGAMOS | D8: 1343444765 | E8: 722960223 | F8: -620484541.6 | I8: COLBUN | J8: 130643592 | K8: 16318644 | L8: 1360424 | M8: 13208139 | N8: 116078 | O8: 82701461 | P8: 447599 | Q8: 54962137 | R8: 89865297 | S8: 26134194 | T8: 1622638 | U8: 213894 | V8: 5659548 | W8: 423253646
C9: ANTILHUE | D9: 0 | E9: 26052675 | F9: 26052675 | I9: COMASA | J9: 6322682 | K9: 789764 | L9: 65840 | M9: 639227 | N9: 5618 | O9: 4002455 | P9: 21662 | Q9: 2659971 | R9: 4349159 | S9: 1264801 | T9: 78530 | U9: 10352 | V9: 273902 | W9: 20483961.35
C10: ARAUCO BIO | D10: 203139671.8 | E10: 6895115 | F10: -196244556.8 | I10: EMELDA | J10: 17370572 | K10: 2169752 | L10: 180884 | M10: 1756174 | N10: 15434 | O10: 10996113 | P10: 59514 | Q10: 7307850 | R10: 11948627 | S10: 3474842 | T10: 215748 | U10: 28440 | V10: 752502 | W10: 56276451.72
C11: BE FORESTALES | D11: 16176679.83 | E11: 269117921 | F11: 252941241.2 | I11: ENEL_GENERACION | J11: 264716044 | K11: 33065586 | L11: 2756554 | M11: 26762938 | N11: 235203 | O11: 167573496 | P11: 906946 | Q11: 111366806 | R11: 182089190 | S11: 52954303 | T11: 3287863 | U11: 433403 | V11: 11467636 | W11: 857615966.2
C12: CARDONES SA | D12: 0 | E12: 2222945 | F12: 2222945 | I12: ENERGIA PACIFICO | J12: 5407999 | K12: 675511 | L12: 56315 | M12: 546752 | N12: 4805 | O12: 3423431 | P12: 18528 | Q12: 2275161 | R12: 3719979 | S12: 1081826 | T12: 67169 | U12: 8854 | V12: 234277 | W12: 17520607.87
C13: COCHRANE | D13: 820147850.6 | E13: 2403914488 | F13: 1583766637 | I13: ENGIE | J13: 319421771 | K13: 39898858 | L13: 3326218 | M13: 32293717 | N13: 283810 | O13: 202203924 | P13: 1094374 | Q13: 134381664 | R13: 219719405 | S13: 63897741 | T13: 3967327 | U13: 522969 | V13: 13837516 | W13: 1034849293
C14: COLBUN | D14: 4303219125 | E14: 3879965479 | F14: -423253646 | I14: ENORCHILE | J14: 15606721 | K14: 1949430 | L14: 162517 | M14: 1577848 | N14: 13867 | O14: 9879540 | P14: 53470 | Q14: 6565793 | R14: 10735334 | S14: 3121998 | T14: 193841 | U14: 25552 | V14: 676091 | W14: 50562001.92
C15: COLMITO | D15: 0 | E15: 8571711 | F15: 8571711 | I15: ERSA | J15: 15790495 | K15: 1972385 | L15: 164430 | M15: 1596428 | N15: 14030 | O15: 9995875 | P15: 54100 | Q15: 6643107 | R15: 10861746 | S15: 3158761 | T15: 196123 | U15: 25853 | V15: 684052 | W15: 51157384.38
C16: COMASA | D16: 26156983.35 | E16: 5673022 | F16: -20483961.35 | I16: NEOMAS | J16: 8484891 | K16: 1059845 | L16: 88355 | M16: 857827 | N16: 7539 | O16: 5371200 | P16: 29070 | Q16: 3569618 | R16: 5836469 | S16: 1697334 | T16: 105385 | U16: 13892 | V16: 367570 | W16: 27488996.02
C17: EMELDA | D17: 56453292.72 | E17: 176841 | F17: -56276451.72 | I17: NUEVA ENERGIA | J17: 11188242 | K17: 1397519 | L17: 116506 | M17: 1131137 | N17: 9941 | O17: 7082506 | P17: 38332 | Q17: 4706926 | R17: 7696013 | S17: 2238117 | T17: 138962 | U17: 18318 | V17: 484680 | W17: 36247200.04
C18: ENEL_GENERACION | D18: 7232229630 | E18: 6374613664 | F18: -857615966.2 | I18: SGA | J18: 8520287 | K18: 1064266 | L18: 88724 | M18: 861406 | N18: 7570 | O18: 5393607 | P18: 29191 | Q18: 3584510 | R18: 5860817 | S18: 1704415 | T18: 105825 | U18: 13950 | V18: 369103 | W18: 27603670.58
C19: ENERGIA PACIFICO | D19: 20491797.87 | E19: 2971190 | F19: -17520607.87 | I19: TAMAKAYA_ENERGIA | J19: 79624379 | K19: 9945852 | L19: 829148 | M19: 8050069 | N19: 70747 | O19: 50404710 | P19: 272802 | Q19: 33498207 | R19: 54770910 | S19: 15928213 | T19: 988962 | U19: 130364 | V19: 3449369 | W19: 257963731.4
C20: ENGIE | D20: 3766879042 | E20: 2732029749 | F20: -1034849293 | I20: AASA_ENERGIA | J20: 223158 | K20: 27875 | L20: 2324 | M20: 22561 | N20: 198 | O20: 141266 | P20: 765 | Q20: 93883 | R20: 153503 | S20: 44641 | T20: 2772 | U20: 365 | V20: 9667 | W20: 722976.894
C21: ENLASA | D21: 0 | E21: 0 | F21: 0 | I21: ABASTIBLE | J21: 308461 | K21: 38530 | L21: 3212 | M21: 31186 | N21: 274 | O21: 195265 | P21: 1057 | Q21: 129770 | R21: 212180 | S21: 61705 | T21: 3831 | U21: 505 | V21: 13363 | W21: 999338.1689
C22: ENORCHILE | D22: 50562001.92 | E22: 0 | F22: -50562001.92 | I22: ACCIONA_ENERGIA | J22: 113191624 | K22: 14138725 | L22: 1178692 | M22: 11443735 | N22: 100572 | O22: 71653821 | P22: 387807 | Q22: 47620044 | R22: 77860680 | S22: 22643068 | T22: 1405878 | U22: 185321 | V22: 4903519 | W22: 366713487.4
C23: ERSA | D23: 51590932.38 | E23: 433548 | F23: -51157384.38 | I23: AELA_GENERACION | J23: 65789647 | K23: 8217761 | L23: 685084 | M23: 6651370 | N23: 58455 | O23: 41646894 | P23: 225403 | Q23: 27677895 | R23: 45254467 | S23: 13160687 | T23: 817130 | U23: 107713 | V23: 2850041 | W23: 213142545.8
C24: GMETROPOLITANA | D24: 0 | E24: 1052547306 | F24: 1052547306 | I24: ALBA | J24: 859793 | K24: 107396 | L24: 8953 | M24: 86926 | N24: 764 | O24: 544276 | P24: 2946 | Q24: 361718 | R24: 591423 | S24: 171995 | T24: 10679 | U24: 1408 | V24: 37247 | W24: 2785522.905
C25: GUACOLDA | D25: 1569777982 | E25: 3290735008 | F25: 1720957026 | I25: ALLIPEN | J25: 3736538 | K25: 466730 | L25: 38909 | M25: 377766 | N25: 3320 | O25: 2365345 | P25: 12802 | Q25: 1571972 | R25: 2570238 | S25: 747464 | T25: 46409 | U25: 6118 | V25: 161869 | W25: 12105479.07
C26: HORNITOS | D26: 577369799 | E26: 1077850246 | F26: 500480447 | I26: ARRAYAN_EOLICO | J26: 465248 | K26: 58114 | L26: 4845 | M26: 47037 | N26: 413 | O26: 294517 | P26: 1594 | Q26: 195731 | R26: 320029 | S26: 93069 | T26: 5779 | U26: 762 | V26: 20155 | W26: 1507292.264
C27: LOS_GUINDOS | D27: 0 | E27: 31074173 | F27: 31074173 | I27: CERRO_DOMINADOR_CSP | J27: 80073987 | K27: 10002013 | L27: 833830 | M27: 8095524 | N27: 71147 | O27: 50689326 | P27: 274342 | Q27: 33687358 | R27: 55080181 | S27: 16018153 | T27: 994546 | U27: 131100 | V27: 3468846 | W27: 259420354.8
C28: NEOMAS | D28: 28252400.02 | E28: 763404 | F28: -27488996.02 | I28: ATRIA_ENERGIA | J28: 11378179 | K28: 1421244 | L28: 118484 | M28: 1150340 | N28: 10110 | O28: 7202741 | P28: 38983 | Q28: 4786833 | R28: 7826663 | S28: 2276113 | T28: 141321 | U28: 18629 | V28: 492909 | W28: 36862548.05
C29: NUEVA ENERGIA | D29: 37203395.04 | E29: 956195 | F29: -36247200.04 | I29: BESALCO | J29: 13359056 | K29: 1668675 | L29: 139111 | M29: 1350608 | N29: 11870 | O29: 8456699 | P29: 45770 | Q29: 5620194 | R29: 9189242 | S29: 2672371 | T29: 165924 | U29: 21872 | V29: 578721 | W29: 43280112.37
C30: ORAZUL_CHILE | D30: 0 | E30: 4096164 | F30: 4096164 | I30: CABO_LEONES | J30: 17401849 | K30: 2173659 | L30: 181210 | M30: 1759336 | N30: 15462 | O30: 11015912 | P30: 59621 | Q30: 7321008 | R30: 11970142 | S30: 3481099 | T30: 216137 | U30: 28491 | V30: 753857 | W30: 56377781.43
C31: SGA | D31: 44266951.58 | E31: 16663281 | F31: -27603670.58 | I31: CAREN | J31: 9321513 | K31: 1164347 | L31: 97067 | M31: 942410 | N31: 8282 | O31: 5900808 | P31: 31937 | Q31: 3921588 | R31: 6411953 | S31: 1864693 | T31: 115776 | U31: 15262 | V31: 403813 | W31: 30199448.14
C32: SWO | D32: 0 | E32: 108382644 | F32: 108382644 | I32: CONEJO_SOLAR | J32: 24823263 | K32: 3100665 | L32: 258491 | M32: 2509646 | N32: 22056 | O32: 15713898 | P32: 85047 | Q32: 10443218 | R32: 17075081 | S32: 4965693 | T32: 308313 | U32: 40642 | V32: 1075357 | W32: 80421368.45
C33: TAMAKAYA_ENERGIA | D33: 1383713793 | E33: 1125750062 | F33: -257963731.4 | I33: COYANCO | J33: 5392225 | K33: 673541 | L33: 56151 | M33: 545157 | N33: 4791 | O33: 3413447 | P33: 18474 | Q33: 2268525 | R33: 3709129 | S33: 1078671 | T33: 66973 | U33: 8828 | V33: 233594 | W33: 17469506.57
C34: AASA_ENERGIA | D34: 722976.894 | E34: 0 | F34: -722976.894 | I34: CHACAYES | J34: 61256445 | K34: 7651520 | L34: 637879 | M34: 6193060 | N34: 54427 | O34: 38777237 | P34: 209871 | Q34: 25770764 | R34: 42136231 | S34: 12253856 | T34: 760826 | U34: 100291 | V34: 2653661 | W34: 198456068.7
C35: ABASTIBLE | D35: 999338.1689 | E35: 0 | F35: -999338.1689 | I35: CHUNGUNGO | J35: 14285945 | K35: 1784452 | L35: 148763 | M35: 1444317 | N35: 12693 | O35: 9043448 | P35: 48945 | Q35: 6010138 | R35: 9826817 | S35: 2857788 | T35: 177436 | U35: 23389 | V35: 618875 | W35: 46283007.11
C36: ACCIONA_ENERGIA | D36: 366713487.4 | E36: 0 | F36: -366713487.4 | I36: DUQUECO | J36: 38718299 | K36: 4836289 | L36: 403183 | M36: 3914441 | N36: 34402 | O36: 24509889 | P36: 132653 | Q36: 16288901 | R36: 26633005 | S36: 7745283 | T36: 480894 | U36: 63391 | V36: 1677297 | W36: 125437926.7
C37: AELA_GENERACION | D37: 213142545.8 | E37: 0 | F37: -213142545.8 | I37: EL_MORADO | J37: 3008087 | K37: 375739 | L37: 31324 | M37: 304119 | N37: 2673 | O37: 1904213 | P37: 10306 | Q37: 1265511 | R37: 2069161 | S37: 601743 | T37: 37361 | U37: 4925 | V37: 130312 | W37: 9745473.472
C38: ALBA | D38: 2785522.905 | E38: 0 | F38: -2785522.905 | I38: EL_PELICANO | J38: 22961059 | K38: 2868058 | L38: 239099 | M38: 2321376 | N38: 20401 | O38: 14535065 | P38: 78667 | Q38: 9659784 | R38: 15794134 | S38: 4593174 | T38: 285184 | U38: 37593 | V38: 994685 | W38: 74388279.07
C39: ALLIPEN | D39: 12105479.07 | E39: 0 | F39: -12105479.07 | I39: EMBALSE_ANCOA | J39: 1566919 | K39: 195723 | L39: 16317 | M39: 158416 | N39: 1392 | O39: 991909 | P39: 5368 | Q39: 659208 | R39: 1077831 | S39: 313450 | T39: 19462 | U39: 2565 | V39: 67880 | W39: 5076440.119
C40: ARRAYAN_EOLICO | D40: 1507292.264 | E40: 0 | F40: -1507292.264 | I40: ENERGIA_LEON | J40: 1584632 | K40: 197936 | L40: 16501 | M40: 160207 | N40: 1408 | O40: 1003122 | P40: 5429 | Q40: 666659 | R40: 1090015 | S40: 316993 | T40: 19682 | U40: 2594 | V40: 68647 | W40: 5133826.018
C41: CERRO_DOMINADOR_CSP | D41: 259420354.8 | E41: 0 | F41: -259420354.8 | I41: EOLICA_ESPERANZA | J41: 1149289 | K41: 143557 | L41: 11968 | M41: 116194 | N41: 1021 | O41: 727536 | P41: 3938 | Q41: 483509 | R41: 790557 | S41: 229906 | T41: 14275 | U41: 1882 | V41: 49788 | W41: 3723419.76
C42: ATRIA_ENERGIA | D42: 36862548.05 | E42: 0 | F42: -36862548.05 | I42: GAS SUR | J42: 199307 | K42: 24895 | L42: 2075 | M42: 20150 | N42: 177 | O42: 126168 | P42: 683 | Q42: 83849 | R42: 137097 | S42: 39870 | T42: 2475 | U42: 326 | V42: 8634 | W42: 645706.3933
C43: BESALCO | D43: 43280112.37 | E43: 0 | F43: -43280112.37 | I43: GM_HOLDINGS | J43: 328521305 | K43: 41035478 | L43: 3420974 | M43: 33213685 | N43: 291895 | O43: 207964212 | P43: 1125550 | Q43: 138209864 | R43: 225978666 | S43: 65718029 | T43: 4080346 | U43: 537867 | V43: 14231712 | W43: 1064329583
C44: CABO_LEONES | D44: 56377781.43 | E44: 0 | F44: -56377781.43 | I44: HELIO_ATACAMA_TRES | J44: 1684841 | K44: 210453 | L44: 17545 | M44: 170338 | N44: 1497 | O44: 1066557 | P44: 5772 | Q44: 708817 | R44: 1158945 | S44: 337039 | T44: 20926 | U44: 2758 | V44: 72988 | W44: 5458476.31
C45: CAREN | D45: 30199448.14 | E45: 0 | F45: -30199448.14 | I45: HIDROLIRCAY | J45: 15448255 | K45: 1929636 | L45: 160867 | M45: 1561827 | N45: 13726 | O45: 9779226 | P45: 52927 | Q45: 6499126 | R45: 10626331 | S45: 3090298 | T45: 191873 | U45: 25292 | V45: 669226 | W45: 50048610.16
C46: CONEJO_SOLAR | D46: 80421368.45 | E46: 0 | F46: -80421368.45 | I46: HUAJACHE | J46: 2650435 | K46: 331065 | L46: 27600 | M46: 267960 | N46: 2355 | O46: 1677808 | P46: 9081 | Q46: 1115046 | R46: 1823145 | S46: 530198 | T46: 32919 | U46: 4339 | V46: 114818 | W46: 8586769.148
C47: COYANCO | D47: 17469506.57 | E47: 0 | F47: -17469506.57 | I47: IMELSA_ENERGIA | J47: 47462288 | K47: 5928497 | L47: 494237 | M47: 4798463 | N47: 42171 | O47: 30045105 | P47: 162611 | Q47: 19967522 | R47: 32647698 | S47: 9494447 | T47: 589498 | U47: 77707 | V47: 2056091 | W47: 153766333.7
C48: CHACAYES | D48: 198456068.7 | E48: 0 | F48: -198456068.7 | I48: JAVIERA | J48: 19463371 | K48: 2431163 | L48: 202677 | M48: 1967758 | N48: 17293 | O48: 12320920 | P48: 66684 | Q48: 8188296 | R48: 13388193 | S48: 3893490 | T48: 241742 | U48: 31866 | V48: 843163 | W48: 63056614.63
C49: CHUNGUNGO | D49: 46283007.11 | E49: 0 | F49: -46283007.11 | I49: KALTEMP | J49: 115550 | K49: 14433 | L49: 1203 | M49: 11682 | N49: 103 | O49: 73146 | P49: 396 | Q49: 48612 | R49: 79483 | S49: 23115 | T49: 1435 | U49: 189 | V49: 5006 | W49: 374352.6244
C50: DUQUECO | D50: 125437926.7 | E50: 0 | F50: -125437926.7 | I50: KDM_ENERGIA | J50: 12533196 | K50: 1565517 | L50: 130511 | M50: 1267113 | N50: 11136 | O50: 7933903 | P50: 42940 | Q50: 5272752 | R50: 8621160 | S50: 2507164 | T50: 155667 | U50: 20520 | V50: 542945 | W50: 40604523.5
C51: EL_MORADO | D51: 9745473.472 | E51: 0 | F51: -9745473.472 | I51: LA ARENA SPA | J51: 4025229 | K51: 502790 | L51: 41916 | M51: 406953 | N51: 3576 | O51: 2548095 | P51: 13791 | Q51: 1693425 | R51: 2768818 | S51: 805214 | T51: 49995 | U51: 6590 | V51: 174375 | W51: 13040768.02
C52: EL_PELICANO | D52: 74388279.07 | E52: 0 | F52: -74388279.07 | I52: LA CONFLUENCIA | J52: 32103533 | K52: 4010041 | L52: 334302 | M52: 3245685 | N52: 28524 | O52: 20322535 | P52: 109990 | Q52: 13506049 | R52: 22082931 | S52: 6422052 | T52: 398737 | U52: 52561 | V52: 1390742 | W52: 104007682.1
C53: EMBALSE_ANCOA | D53: 5076440.119 | E53: 0 | F53: -5076440.119 | I53: LA HIGUERA | J53: 41922786 | K53: 5236560 | L53: 436552 | M53: 4238417 | N53: 37249 | O53: 26538429 | P53: 143632 | Q53: 17637038 | R53: 28837263 | S53: 8386314 | T53: 520695 | U53: 68637 | V53: 1816117 | W53: 135819689.7
C54: ENERGIA_LEON | D54: 5133826.018 | E54: 0 | F54: -5133826.018 | I54: LIPIGAS | J54: 11205274 | K54: 1399647 | L54: 116683 | M54: 1132859 | N54: 9956 | O54: 7093287 | P54: 38391 | Q54: 4714091 | R54: 7707728 | S54: 2241524 | T54: 139173 | U54: 18346 | V54: 485418 | W54: 36302376.78
C55: EOLICA_ESPERANZA | D55: 3723419.76 | E55: 0 | F55: -3723419.76 | I55: LOS_CURUROS | J55: 1967285 | K55: 245733 | L55: 20486 | M55: 198894 | N55: 1748 | O55: 1245353 | P55: 6740 | Q55: 827642 | R55: 1353229 | S55: 393539 | T55: 24434 | U55: 3221 | V55: 85224 | W55: 6373527.579
C56: GAS SUR | D56: 645706.3933 | E56: 0 | F56: -645706.3933 | I56: LUZ_DEL_NORTE | J56: 16158106 | K56: 2018303 | L56: 168258 | M56: 1633593 | N56: 14357 | O56: 10228584 | P56: 55359 | Q56: 6797762 | R56: 11114613 | S56: 3232298 | T56: 200689 | U56: 26455 | V56: 699977 | W56: 52348356.31
C57: GM_HOLDINGS | D57: 1064329583 | E57: 0 | F57: -1064329583 | I57: MONTE REDONDO | J57: 23959589 | K57: 2992784 | L57: 249497 | M57: 2422328 | N57: 21288 | O57: 15167165 | P57: 82088 | Q57: 10079868 | R57: 16480989 | S57: 4792922 | T57: 297586 | U57: 39227 | V57: 1037942 | W57: 77623272.86
C58: HELIO_ATACAMA_TRES | D58: 5458476.31 | E58: 0 | F58: -5458476.31 | I58: NORACID | J58: 2539452 | K58: 317202 | L58: 26444 | M58: 256740 | N58: 2256 | O58: 1607552 | P58: 8700 | Q58: 1068355 | R58: 1746803 | S58: 507997 | T58: 31541 | U58: 4158 | V58: 110010 | W58: 8227209.438
C59: HIDROLIRCAY | D59: 50048610.16 | E59: 0 | F59: -50048610.16 | I59: NORVIND | J59: 7857156 | K59: 981435 | L59: 81819 | M59: 794363 | N59: 6981 | O59: 4973824 | P59: 26919 | Q59: 3305528 | R59: 5404671 | S59: 1571761 | T59: 97589 | U59: 12864 | V59: 340376 | W59: 25455285.66
C60: HUAJACHE | D60: 8586769.148 | E60: 0 | F60: -8586769.148 | I60: ON GROUP | J60: 2734580 | K60: 341575 | L60: 28476 | M60: 276467 | N60: 2430 | O60: 1731074 | P60: 9369 | Q60: 1150446 | R60: 1881025 | S60: 547031 | T60: 33964 | U60: 4477 | V60: 118463 | W60: 8859376.387
C61: IMELSA_ENERGIA | D61: 153766333.7 | E61: 0 | F61: -153766333.7 | I61: PACIFIC HYDRO | J61: 783881 | K61: 97914 | L61: 8163 | M61: 79251 | N61: 696 | O61: 496221 | P61: 2686 | Q61: 329781 | R61: 539205 | S61: 156809 | T61: 9736 | U61: 1283 | V61: 33958 | W61: 2539585.525
C62: JAVIERA | D62: 63056614.63 | E62: 0 | F62: -63056614.63 | I62: PARQUE_EOLICO_LEBU | J62: 384488 | K62: 48026 | L62: 4004 | M62: 38872 | N62: 342 | O62: 243393 | P62: 1317 | Q62: 161755 | R62: 264477 | S62: 76914 | T62: 4775 | U62: 629 | V62: 16656 | W62: 1245649.602
C63: KALTEMP | D63: 374352.6244 | E63: 0 | F63: -374352.6244 | I63: PEHUENCHE | J63: 40837416 | K63: 5100987 | L63: 425250 | M63: 4128685 | N63: 36284 | O63: 25851355 | P63: 139914 | Q63: 17180419 | R63: 28090673 | S63: 8169195 | T63: 507215 | U63: 66860 | V63: 1769098 | W63: 132303350.8
C64: KDM_ENERGIA | D64: 40604523.5 | E64: 0 | F64: -40604523.5 | I64: POZO_ALMONTE_SOLAR_2 | J64: 2756898 | K64: 344363 | L64: 28708 | M64: 278724 | N64: 2450 | O64: 1745202 | P64: 9445 | Q64: 1159835 | R64: 1896377 | S64: 551495 | T64: 34242 | U64: 4514 | V64: 119430 | W64: 8931683.828
C65: LA ARENA SPA | D65: 13040768.02 | E65: 0 | F65: -13040768.02 | I65: POZO_ALMONTE_SOLAR_3 | J65: 5046397 | K65: 630344 | L65: 52549 | M65: 510194 | N65: 4484 | O65: 3194527 | P65: 17290 | Q65: 2123034 | R65: 3471246 | S65: 1009491 | T65: 62678 | U65: 8262 | V65: 218613 | W65: 16349107.36
C66: LA CONFLUENCIA | D66: 104007682.1 | E66: 0 | F66: -104007682.1 | I66: PUCLARO | J66: 352498 | K66: 44030 | L66: 3671 | M66: 35638 | N66: 313 | O66: 223142 | P66: 1208 | Q66: 148297 | R66: 242471 | S66: 70514 | T66: 4378 | U66: 577 | V66: 15270 | W66: 1142008.132
C67: LA HIGUERA | D67: 135819689.7 | E67: 0 | F67: -135819689.7 | I67: PUNTILLA | J67: 22631880 | K67: 2826940 | L67: 235671 | M67: 2288096 | N67: 20109 | O67: 14326684 | P67: 77539 | Q67: 9521297 | R67: 15567703 | S67: 4527324 | T67: 281096 | U67: 37054 | V67: 980425 | W67: 73321818.08
C68: LIPIGAS | D68: 36302376.78 | E68: 0 | F68: -36302376.78 | I68: RAKI | J68: 3565352 | K68: 445347 | L68: 37127 | M68: 360459 | N68: 3168 | O68: 2256979 | P68: 12215 | Q68: 1499954 | R68: 2452484 | S68: 713220 | T68: 44283 | U68: 5837 | V68: 154453 | W68: 11550877.1
C69: LOS_CURUROS | D69: 6373527.579 | E69: 0 | F69: -6373527.579 | I69: RIO_COLORADO | J69: 3122348 | K69: 390011 | L69: 32514 | M69: 315671 | N69: 2774 | O69: 1976544 | P69: 10698 | Q69: 1313581 | R69: 2147757 | S69: 624601 | T69: 38781 | U69: 5112 | V69: 135262 | W69: 10115653.26
C70: LUZ_DEL_NORTE | D70: 52348356.31 | E70: 0 | F70: -52348356.31 | I70: RUCATAYO | J70: 34735965 | K70: 4338857 | L70: 361714 | M70: 3511825 | N70: 30863 | O70: 21988947 | P70: 119009 | Q70: 14613521 | R70: 23893693 | S70: 6948649 | T70: 431432 | U70: 56871 | V70: 1504780 | W70: 112536127.4
C71: MONTE REDONDO | D71: 77623272.86 | E71: 0 | F71: -77623272.86 | I71: SAFIRA_ENERGIA_CHILE | J71: 3358677 | K71: 419531 | L71: 34975 | M71: 339564 | N71: 2984 | O71: 2126147 | P71: 11507 | Q71: 1413005 | R71: 2310320 | S71: 671876 | T71: 41716 | U71: 5499 | V71: 145500 | W71: 10881300.31
C72: NORACID | D72: 8227209.438 | E72: 0 | F72: -8227209.438 | I72: SAN_JUAN_LAP | J72: 65232774 | K72: 8148202 | L72: 679285 | M72: 6595069 | N72: 57960 | O72: 41294377 | P72: 223495 | Q72: 27443617 | R72: 44871414 | S72: 13049289 | T72: 810213 | U72: 106801 | V72: 2825917 | W72: 211338413.9
C73: NORVIND | D73: 25455285.66 | E73: 0 | F73: -25455285.66 | I73: SANTIAGO_SOLAR | J73: 9023087 | K73: 1127070 | L73: 93960 | M73: 912239 | N73: 8017 | O73: 5711895 | P73: 30914 | Q73: 3796039 | R73: 6206675 | S73: 1804995 | T73: 112070 | U73: 14773 | V73: 390885 | W73: 29232618.44
C74: ON GROUP | D74: 8859376.387 | E74: 0 | F74: -8859376.387 | I74: SPVP4 | J74: 1500342 | K74: 187407 | L74: 15623 | M74: 151685 | N74: 1333 | O74: 949763 | P74: 5140 | Q74: 631198 | R74: 1032035 | S74: 300131 | T74: 18635 | U74: 2456 | V74: 64996 | W74: 4860746.419
C75: PACIFIC HYDRO | D75: 2539585.525 | E75: 0 | F75: -2539585.525 | I75: TACORA_ENERGY | J75: 427741 | K75: 53429 | L75: 4454 | M75: 43245 | N75: 380 | O75: 270773 | P75: 1465 | Q75: 179952 | R75: 294229 | S75: 85566 | T75: 5313 | U75: 700 | V75: 18530 | W75: 1385777.718
C76: PARQUE_EOLICO_LEBU | D76: 1245649.602 | E76: 0 | F76: -1245649.602 | I76: TECNORED | J76: 20126368 | K76: 2513977 | L76: 209581 | M76: 2034787 | N76: 17882 | O76: 12740618 | P76: 68955 | Q76: 8467221 | R76: 13844246 | S76: 4026117 | T76: 249976 | U76: 32952 | V76: 871885 | W76: 65204566.67
C77: PEHUENCHE | D77: 132303350.8 | E77: 0 | F77: -132303350.8 | I77: UCUQUER_DOS | J77: 1326538 | K77: 165697 | L77: 13814 | M77: 134114 | N77: 1179 | O77: 839740 | P77: 4545 | Q77: 558078 | R77: 912481 | S77: 265363 | T77: 16476 | U77: 2172 | V77: 57466 | W77: 4297662.98
C78: POZO_ALMONTE_SOLAR_2 | D78: 8931683.828 | E78: 0 | F78: -8931683.828 | I78: EGP_CHILE | J78: 68112297 | K78: 8507882 | L78: 709270 | M78: 6886191 | N78: 60518 | O78: 43117204 | P78: 233360 | Q78: 28655040 | R78: 46852139 | S78: 13625314 | T78: 845978 | U78: 111516 | V78: 2950660 | W78: 220667369.7
C79: POZO_ALMONTE_SOLAR_3 | D79: 16349107.36 | E79: 0 | F79: -16349107.36 | I79: PMGD_PICA_PILOT | J79: 13879782 | K79: 1733719 | L79: 144534 | M79: 1403254 | N79: 12332 | O79: 8786334 | P79: 47554 | Q79: 5839264 | R79: 9547431 | S79: 2776538 | T79: 172392 | U79: 22724 | V79: 601279 | W79: 44967136.02
C80: PUCLARO | D80: 1142008.132 | E80: 0 | F80: -1142008.132 | I80: PV_SALVADOR | J80: 5392680 | K80: 673598 | L80: 56155 | M80: 545203 | N80: 4791 | O80: 3413734 | P80: 18476 | Q80: 2268716 | R80: 3709442 | S80: 1078762 | T80: 66979 | U80: 8829 | V80: 233614 | W80: 17470978.47
C81: PUNTILLA | D81: 73321818.08 | E81: 0 | F81: -73321818.08 | I81: EMOAC | J81: 453541 | K81: 56652 | L81: 4723 | M81: 45853 | N81: 403 | O81: 287106 | P81: 1554 | Q81: 190806 | R81: 311976 | S81: 90727 | T81: 5633 | U81: 743 | V81: 19648 | W81: 1469363.298
C82: RAKI | D82: 11550877.1 | E82: 0 | F82: -11550877.1 | I82: ENERGY_ASSET | J82: 65714 | K82: 8208 | L82: 684 | M82: 6644 | N82: 58 | O82: 41599 | P82: 225 | Q82: 27646 | R82: 45202 | S82: 13146 | T82: 816 | U82: 108 | V82: 2847 | W82: 212897.5118
C83: RIO_COLORADO | D83: 10115653.26 | E83: 0 | F83: -10115653.26 | I83: ECOM_GENERACION | J83: 161187 | K83: 20134 | L83: 1678 | M83: 16296 | N83: 143 | O83: 102036 | P83: 552 | Q83: 67812 | R83: 110875 | S83: 32244 | T83: 2002 | U83: 264 | V83: 6983 | W83: 522207.0537
C84: RUCATAYO | D84: 112536127.4 | E84: 0 | F84: -112536127.4 | I84: Total | J84: 2501877981 | K84: 312508676.7 | L84: 26052675 | M84: 252941241.2 | N84: 2222945 | O84: 1583766637 | P84: 8571711 | Q84: 1052547306 | R84: 1720957026 | S84: 500480447 | T84: 31074173 | U84: 4096164 | V84: 108382644 | W84: 8105479627
C85: SAFIRA_ENERGIA_CHILE | D85: 10881300.31 | E85: 0 | F85: -10881300.31
C86: SAN_JUAN_LAP | D86: 211338413.9 | E86: 0 | F86: -211338413.9
C87: SANTIAGO_SOLAR | D87: 29232618.44 | E87: 0 | F87: -29232618.44
C88: SPVP4 | D88: 4860746.419 | E88: 0 | F88: -4860746.419
C89: TACORA_ENERGY | D89: 1385777.718 | E89: 0 | F89: -1385777.718
C90: TECNORED | D90: 65204566.67 | E90: 0 | F90: -65204566.67
C91: UCUQUER_DOS | D91: 4297662.98 | E91: 0 | F91: -4297662.98
C92: EGP_CHILE | D92: 220667369.7 | E92: 0 | F92: -220667369.7
C93: PMGD_PICA_PILOT | D93: 44967136.02 | E93: 0 | F93: -44967136.02
C94: PV_SALVADOR | D94: 17470978.47 | E94: 0 | F94: -17470978.47
C95: EMOAC | D95: 1469363.298 | E95: 0 | F95: -1469363.298
C96: ENERGY_ASSET | D96: 212897.5118 | E96: 0 | F96: -212897.5118
C97: ECOM_GENERACION | D97: 522207.0537 | E97: 0 | F97: -522207.0537
C98: Total | D98: 3.003377646e+10 | E98: 30033776463 | F98: -4.783913027e-06
